bitfinex-derivatives/quotes_SOLF0:USTF0_20250518
["timestamp","ask_amount","ask_price","bid_price","bid_amount"]
[1747549938205,5.9017,169.39,169.35,5.9027]
[1747549939222,5.9017,169.39,169.34,5.9033]
[1747549939719,5.902,169.38,169.34,5.9033]
[1747549939915,59.54,169.4,169.32,59.52]
[1747549940118,64.66696945,169.4,169.32,59.52]
[1747549941018,5.9023,169.37,169.33,5.9036]
[1747549942915,5.9028,169.36,169.32,59.52]
[1747549943122,64.66696945,169.4,169.32,59.52]
[1747549943423,5.902,169.38,169.34,5.9032]
[1747549944217,64.66696945,169.4,169.32,59.52]
[1747549944422,59.54,169.4,169.32,59.52]
[1747549944820,59.54,169.4,169.38,5.9017]
[1747549945018,59.54,169.4,169.33,1.9933]
[1747549945217,5.9012,169.4,169.36,5.9024]
[1747549945422,66.77618058,169.42,169.33,1.9933]
[1747549946129,59.54,169.43,169.34,59.54]
[1747549946319,119.06,169.43,169.34,59.54]
[1747549946519,5.9008,169.42,169.38,5.9017]
[1747549947231,119.06,169.45,169.36,59.52]
[1747549947426,59.54,169.45,169.37,1.9472]
[1747549947618,5.8993,169.46,169.41,5.9005]
[1747549947818,5.8993,169.46,169.38,59.54]
[1747549948222,5.8993,169.46,169.42,5.9003]
[1747549948421,65.4189,169.47,169.38,59.54]
[1747549948927,65.4189,169.47,169.42,5.9002]
[1747549949626,5.8992,169.46,169.42,5.9002]
[1747549950732,59.52,169.47,169.38,59.54]
[1747549950914,5.12696945,169.45,169.38,59.54]
[1747549951119,59.52,169.44,169.37,5.51214385]
[1747549951318,5.9011,169.41,169.37,11.41424385]
[1747549951622,5.9011,169.41,169.37,5.9021]
[1747549952030,5.9007,169.42,169.38,5.9018]
[1747549952220,5.9007,169.42,169.35,119.04]
[1747549952620,59.58,169.43,169.35,119.04]
[1747549953933,65.4802,169.43,169.35,119.04]
[1747549955235,59.58,169.43,169.35,119.04]
[1747549955429,5.12696945,169.42,169.33,1.9694]
[1747549955827,5.9013,169.4,169.35,5.9027]
[1747549956028,65.4213,169.4,169.35,5.9027]
[1747549956739,5.9016,169.39,169.35,5.9027]
[1747549956927,59.52,169.4,169.34,5.9032]
[1747549957731,5.9022,169.38,169.34,5.9032]
[1747549959534,5.9017,169.39,169.35,5.903]
[1747549959835,59.52,169.4,169.32,59.52]
[1747549960136,59.52,169.4,169.37,5.9023]
[1747549960330,59.52,169.4,169.32,59.52]
[1747549961239,65.4213,169.4,169.36,5.9024]
[1747549962539,59.52,169.4,169.34,5.9032]
[1747549963136,5.9021,169.38,169.34,5.9032]
[1747549963535,5.9025,169.37,169.32,65.4239]
[1747549963731,5.9025,169.37,169.32,5.9039]
[1747549964036,5.903,169.35,169.31,5.9043]
[1747549965444,5.9027,169.36,169.32,5.904]
[1747549968141,5.9027,169.36,169.33,5.9036]
[1747549968342,5.9024,169.37,169.33,5.9036]
[1747549968536,3.8412,169.38,169.29,61.3561]
[1747549969037,3.8412,169.38,169.29,120.8361]
[1747549969339,3.8412,169.38,169.32,5.9037]
[1747549969640,3.8412,169.38,169.34,5.9033]
[1747549970239,9.7434,169.38,169.34,5.9033]
[1747549970448,59.46,169.39,169.29,120.8361]
[1747549970642,119.0,169.4,169.29,120.8361]
[1747549971140,124.9015,169.4,169.29,120.8361]
[1747549971536,124.9015,169.4,169.35,5.9027]
[1747549971937,124.9015,169.4,169.36,5.9025]
[1747549972147,119.0,169.4,169.29,125.96306945]
[1747549972334,59.52,169.4,169.29,125.96306945]
[1747549973247,59.52,169.4,169.37,5.902]
[1747549977551,65.4213,169.4,169.37,5.902]
[1747549978345,65.4213,169.4,169.36,5.9025]
[1747549978546,5.9016,169.39,169.33,119.04]
[1747549979050,5.9016,169.39,169.35,5.9029]
[1747549979951,59.52,169.4,169.34,5.9032]
[1747549980455,5.12696945,169.39,169.33,5.9035]
[1747549980654,59.46,169.38,169.3,59.54]
[1747549981654,5.9026,169.37,169.3,59.54]
[1747549982054,5.9026,169.37,169.33,5.9034]
[1747549983061,5.9027,169.36,169.33,5.9034]
[1747549983460,59.46,169.38,169.34,5.9032]
[1747549983960,5.9023,169.37,169.33,5.9035]
[1747549984258,5.9023,169.37,169.3,59.54]
[1747549985365,5.9023,169.37,169.33,5.9034]
[1747549985662,5.9026,169.36,169.33,5.9034]
[1747549986062,59.46,169.38,169.33,5.9034]
[1747549986262,5.9025,169.37,169.33,5.9034]
[1747549986566,59.46,169.38,169.32,5.9039]
[1747549986754,59.46,169.38,169.3,59.54]
[1747549987057,59.46,169.38,169.31,5.9043]
[1747549987261,5.9032,169.35,169.31,5.9043]
[1747549987654,59.54,169.36,169.29,5.9049]
[1747549988263,5.904,169.32,169.29,5.9049]
[1747549988562,5.904,169.32,169.28,5.9053]
[1747549988857,59.76,169.34,169.26,9.39624385]
[1747549989354,65.6636,169.34,169.26,9.39624385]
[1747549989759,65.6636,169.34,169.29,5.9048]
[1747549989959,65.6636,169.34,169.26,9.39624385]
[1747549990257,65.6636,169.34,169.29,5.9049]
[1747549990464,65.6636,169.34,169.26,9.39624385]
[1747549990664,59.76,169.34,169.26,9.39624385]
[1747549990865,59.76,169.34,169.3,5.9046]
[1747549991464,59.76,169.34,169.26,3.8841]
[1747549991656,65.4429,169.36,169.26,3.8841]
[1747549991962,65.4429,169.36,169.31,5.9041]
[1747549992264,59.54,169.36,169.28,59.54]
[1747549992562,59.54,169.36,169.29,5.905]
[1747549993064,5.9036,169.34,169.29,5.905]
[1747549993263,59.54,169.36,169.29,5.905]
[1747549993964,5.9037,169.33,169.3,5.9047]
[1747549994668,59.54,169.36,169.26,3.8841]
[1747549994964,63.7158,169.37,169.26,3.8841]
[1747549995154,59.88,169.37,169.26,3.8841]
[1747549996068,13.01045154,169.42,169.28,10.6391133]
[1747549996267,130.87285154,169.42,169.29,119.8]
[1747549996567,136.77365154,169.42,169.37,5.902]
[1747549996864,130.87285154,169.42,169.37,5.902]
[1747549997364,5.9009,169.41,169.37,5.902]
[1747549998165,130.87285154,169.42,169.33,119.94]
[1747549998463,7.35035154,169.42,169.33,119.94]
[1747549998663,7.35035154,169.42,169.34,3.7791]
[1747549999061,7.35035154,169.42,169.41,5.9009]
[1747549999368,7.35035154,169.42,169.34,3.7791]
[1747549999968,5.9004,169.43,169.34,3.7791]
[1747550000259,59.88,169.45,169.34,3.7791]
[1747550000469,119.82,169.45,169.34,8.90606945]
[1747550000661,7.35035154,169.46,169.42,5.9003]
[1747550001468,7.35035154,169.46,169.43,5.9002]
[1747550003162,7.8122,169.47,169.43,5.9002]
[1747550004063,5.8992,169.46,169.43,5.9002]
[1747550004269,5.8992,169.46,169.42,5.9004]
[1747550004881,5.8992,169.46,169.43,5.9001]
[1747550006367,5.8992,169.46,169.42,5.9004]
[1747550006571,62.0733,169.47,169.38,120.14]
[1747550006866,62.0733,169.47,169.38,59.86]
[1747550007068,67.20026945,169.47,169.38,59.86]
[1747550007263,67.20026945,169.47,169.36,5.51214385]
[1747550007569,5.9011,169.41,169.37,5.9022]
[1747550007967,60.24,169.43,169.37,5.9022]
[1747550008465,60.24,169.43,169.36,5.51214385]
[1747550008662,3.9683,169.42,169.32,120.08]
[1747550009069,5.9018,169.39,169.35,5.9027]
[1747550009473,5.9019,169.38,169.35,5.9027]
[1747550010773,5.9016,169.39,169.35,5.9027]
[1747550012676,5.9012,169.41,169.36,5.9026]
[1747550013180,66.1403,169.43,169.32,120.08]
[1747550013378,60.24,169.43,169.32,120.08]
[1747550013677,60.24,169.43,169.37,5.902]
[1747550013873,5.9008,169.42,169.37,5.902]
[1747550015080,5.9012,169.41,169.36,5.9025]
[1747550015281,5.9012,169.41,169.32,120.08]
[1747550015576,5.9012,169.41,169.37,5.9023]
[1747550017087,60.24,169.43,169.35,5.9029]
[1747550017276,60.24,169.43,169.32,120.08]
[1747550017785,60.24,169.43,169.36,5.9026]
[1747550018188,5.9019,169.39,169.35,5.9029]
[1747550018391,5.9019,169.39,169.32,120.08]
[1747550019291,5.9013,169.4,169.32,120.08]
[1747550019689,5.9013,169.4,169.36,5.9026]
[1747550020890,5.9013,169.4,169.32,120.08]
[1747550021188,5.9017,169.39,169.32,120.08]
[1747550022295,59.86,169.4,169.32,59.86]
[1747550022481,60.16,169.39,169.32,59.86]
[1747550022682,60.16,169.39,169.33,5.9034]
[1747550022982,5.9026,169.36,169.33,5.9034]
[1747550023284,60.16,169.39,169.34,5.9032]
[1747550023895,60.16,169.39,169.32,59.86]
[1747550024590,60.16,169.39,169.36,5.9024]
[1747550026293,60.16,169.39,169.37,5.9023]
[1747550026693,59.86,169.4,169.32,59.86]
[1747550026694,5.901,169.41,169.33,60.08]
[1747550026890,5.901,169.41,169.36,5.9024]
[1747550027090,5.9013,169.4,169.36,5.9024]
[1747550027290,60.08,169.42,169.33,60.08]
[1747550027491,60.08,169.42,169.37,5.9022]
[1747550027894,5.9013,169.4,169.35,5.9029]
[1747550028197,5.9013,169.4,169.33,60.08]
[1747550028898,5.9017,169.39,169.35,5.9029]
[1747550029091,60.08,169.42,169.35,5.9029]
[1747550030099,5.9018,169.39,169.35,5.9029]
[1747550030299,5.9018,169.39,169.36,5.9026]
[1747550034906,5.902,169.38,169.35,5.9028]
[1747550035104,5.902,169.38,169.32,59.86]
[1747550035705,60.08,169.41,169.32,59.86]
[1747550036001,3.9123,169.4,169.32,59.86]
[1747550036204,3.9123,169.4,169.33,5.9036]
[1747550036502,3.9123,169.4,169.32,59.86]
[1747550036699,5.9034,169.34,169.31,5.9043]
[1747550036895,60.12,169.35,169.3,5.51214385]
[1747550037291,5.9039,169.33,169.3,11.41664385]
[1747550037491,60.12,169.35,169.28,5.51214385]
[1747550037998,60.12,169.35,169.29,5.9049]
[1747550038192,62.0937,169.35,169.29,5.9049]
[1747550038803,62.0937,169.35,169.28,5.51214385]
[1747550038998,3.8993,169.34,169.28,5.51214385]
[1747550039316,3.8993,169.34,169.28,11.41754385]
[1747550040607,5.9046,169.31,169.28,11.41754385]
[1747550040997,3.8993,169.34,169.28,5.51214385]
[1747550041402,5.904,169.33,169.28,5.51214385]
[1747550041606,5.904,169.33,169.24,64.1612]
[1747550042196,3.8993,169.34,169.24,64.1612]
[1747550042709,5.9044,169.31,169.27,5.9056]
[1747550042895,3.8993,169.34,169.24,64.1612]
[1747550043201,5.9044,169.31,169.28,5.9052]
[1747550043407,3.8993,169.34,169.28,5.9052]
[1747550044106,60.12,169.35,169.24,64.1612]
[1747550044307,5.9034,169.34,169.24,64.1612]
[1747550044495,5.9034,169.34,169.31,5.9043]
[1747550044808,66.0231,169.35,169.31,5.9043]
[1747550045207,60.12,169.35,169.31,5.9043]
[1747550045407,60.12,169.35,169.32,5.9039]
[1747550045714,60.12,169.35,169.24,4.0212]
[1747550045900,60.12,169.35,169.29,5.9048]
[1747550046206,5.9039,169.33,169.24,64.1812]
[1747550046407,60.12,169.35,169.24,64.1812]
[1747550046708,60.12,169.35,169.3,5.9046]
[1747550046908,60.12,169.35,169.24,64.1812]
[1747550047209,65.24696945,169.35,169.24,2.0148]
[1747550047396,5.905,169.3,169.26,5.906]
[1747550047601,66.565,169.3,169.26,5.906]
[1747550048713,60.66,169.3,169.26,5.906]
[1747550049011,60.66,169.3,169.24,2.0148]
[1747550049201,66.5649,169.3,169.24,2.0148]
[1747550050004,66.5649,169.3,169.26,5.9059]
[1747550050204,5.9052,169.29,169.26,5.9059]
[1747550050405,60.66,169.3,169.26,5.9059]
[1747550050814,66.565,169.3,169.26,5.9059]
[1747550051213,60.66,169.3,169.26,5.9059]
[1747550051417,5.9053,169.29,169.25,5.9064]
[1747550051713,5.9053,169.29,169.24,2.0148]
[1747550052317,60.66,169.3,169.24,2.0148]
[1747550052714,60.66,169.3,169.26,5.9058]
[1747550053016,60.66,169.3,169.23,60.08]
[1747550053404,60.66,169.3,169.21,71.61033672]
[1747550053718,5.12696945,169.35,169.21,71.61033672]
[1747550053918,5.9051,169.29,169.25,5.9062]
[1747550054316,120.72,169.3,169.21,71.61033672]
[1747550055222,5.906,169.27,169.21,71.61033672]
[1747550055720,126.6248,169.3,169.26,5.9059]
[1747550056921,5.9051,169.29,169.26,5.9059]
[1747550057114,5.9051,169.29,169.2,62.114]
[1747550057115,5.9051,169.29,169.25,5.9064]
[1747550058122,5.9051,169.29,169.26,5.906]
[1747550058420,126.6248,169.3,169.2,62.114]
[1747550058614,120.72,169.3,169.2,62.114]
[1747550058815,5.9051,169.29,169.26,5.9061]
[1747550059628,5.9051,169.29,169.25,5.9063]
[1747550060118,120.72,169.3,169.25,5.9063]
[1747550060322,5.9056,169.28,169.24,5.9067]
[1747550061424,5.12696945,169.29,169.2,62.114]
[1747550061726,5.14462671,169.21,169.13,2.7392567]
[1747550061915,5.14462671,169.18,169.13,2.7392567]
[1747550062119,121.72,169.17,169.13,2.7392567]
[1747550062723,5.9103,169.14,169.13,2.7392567]
[1747550062922,121.68,169.18,169.13,2.7392567]
[1747550063115,60.72,169.24,169.13,2.7392567]
[1747550063315,60.72,169.24,169.14,1.9592]
[1747550063623,5.9078,169.22,169.16,5.9094]
[1747550063929,61.46,169.21,169.14,1.9592]
[1747550064226,60.72,169.2,169.15,5.9096]
[1747550064425,60.72,169.2,169.14,1.9592]
[1747550065625,60.72,169.2,169.16,5.9093]
[1747550065824,60.72,169.2,169.14,1.9592]
[1747550067927,60.72,169.2,169.15,5.9099]
[1747550068128,66.6285,169.2,169.15,5.9099]
[1747550068930,5.9085,169.2,169.15,5.9099]
[1747550069131,5.9085,169.2,169.14,1.9592]
[1747550069132,122.16,169.2,169.14,1.9592]
[1747550069634,1.7799,169.28,169.14,1.9592]
[1747550069826,5.14917275,169.26,169.14,1.9592]
[1747550070023,5.14917275,169.26,169.14,63.3592]
[1747550070226,5.9075,169.23,169.14,63.3592]
[1747550070431,128.2275,169.23,169.14,63.3592]
[1747550070937,122.32,169.23,169.14,63.3592]
[1747550071733,122.32,169.23,169.19,5.9082]
[1747550071931,122.32,169.23,169.14,63.3592]
[1747550073235,122.32,169.23,169.19,5.9083]
[1747550073531,128.2272,169.23,169.14,63.3592]
[1747550073740,128.2272,169.23,169.18,5.9087]
[1747550073927,60.74,169.23,169.14,63.3592]
[1747550074830,66.6472,169.23,169.18,5.9086]
[1747550075230,60.74,169.23,169.14,1.9592]
[1747550075435,66.6472,169.23,169.14,1.9592]
[1747550076240,60.74,169.23,169.14,1.9592]
[1747550076533,61.68,169.25,169.14,1.9592]
[1747550076835,67.5865,169.25,169.2,5.908]
[1747550077029,61.68,169.25,169.16,122.46]
[1747550077336,5.9074,169.23,169.18,5.9087]
[1747550077934,5.9076,169.22,169.18,5.9087]
[1747550078136,5.9076,169.22,169.17,5.9092]
[1747550078336,60.74,169.22,169.14,1.9592]
[1747550078639,61.94,169.21,169.14,1.9592]
[1747550079737,61.94,169.21,169.17,5.909]
[1747550079930,61.94,169.21,169.14,1.9592]
[1747550080534,61.94,169.21,169.18,5.9089]
[1747550081044,61.94,169.21,169.19,5.9085]
[1747550081339,60.74,169.22,169.19,5.9085]
[1747550082735,60.74,169.22,169.2,5.9082]
[1747550083238,60.74,169.22,169.14,63.8392]
[1747550083434,61.94,169.24,169.21,5.9079]
[1747550083832,67.8469,169.24,169.2,5.9081]
[1747550085240,67.8469,169.24,169.14,63.8392]
[1747550086040,5.9069,169.24,169.14,63.8392]
[1747550086441,5.9073,169.23,169.14,63.8392]
[1747550086636,5.9073,169.23,169.19,5.9083]
[1747550087330,122.6,169.26,169.14,63.8392]
[1747550087739,5.9074,169.23,169.19,5.9084]
[1747550088242,5.9074,169.23,169.14,63.8392]
[1747550089448,5.9074,169.23,169.19,5.9083]
[1747550089633,5.9069,169.24,169.14,63.8392]
[1747550089937,122.6,169.26,169.17,5.9092]
[1747550090139,5.14917275,169.24,169.14,1.9592]
[1747550091742,5.9084,169.2,169.15,5.9097]
[1747550092338,5.9084,169.2,169.16,5.9095]
[1747550093144,5.9086,169.19,169.15,5.9099]
[1747550093337,125.08,169.22,169.14,1.9592]
[1747550093836,5.9085,169.2,169.15,5.9099]
[1747550095148,5.9086,169.19,169.15,5.9099]
[1747550095745,5.909,169.18,169.14,7.8695]
[1747550095941,5.14917275,169.21,169.14,1.9592]
[1747550096245,5.9086,169.19,169.15,5.9099]
[1747550096437,125.08,169.22,169.14,1.9592]
[1747550097444,5.9089,169.19,169.15,5.9099]
[1747550097645,125.08,169.22,169.14,1.9592]
[1747550098641,5.9093,169.17,169.14,1.9592]
[1747550099142,5.14917275,169.21,169.11,61.78]
[1747550099344,5.9095,169.17,169.13,5.9106]
[1747550100347,5.9096,169.16,169.13,5.9106]
[1747550100548,5.9096,169.16,169.12,5.911]
[1747550100842,5.9096,169.16,169.11,61.78]
[1747550101043,5.9094,169.17,169.13,5.9104]
[1747550101247,61.78,169.18,169.11,61.78]
[1747550101640,5.9095,169.17,169.13,5.9106]
[1747550101954,61.78,169.18,169.11,61.78]
[1747550102137,5.9096,169.16,169.12,5.9107]
[1747550102447,5.9096,169.16,169.11,61.78]
[1747550102647,61.78,169.18,169.11,61.78]
[1747550103146,5.9094,169.17,169.13,5.9103]
[1747550103346,61.78,169.18,169.11,61.78]
[1747550104050,5.9094,169.17,169.13,5.9104]
[1747550104249,61.78,169.2,169.11,61.78]
[1747550104749,5.9087,169.19,169.15,5.9097]
[1747550105251,5.9087,169.19,169.16,5.9096]
[1747550105644,5.9087,169.19,169.11,61.78]
[1747550106051,5.9087,169.19,169.15,5.9096]
[1747550106350,67.6883,169.2,169.11,61.78]
[1747550106650,67.6883,169.2,169.15,5.9096]
[1747550106952,67.6883,169.2,169.11,61.78]
[1747550107340,61.78,169.2,169.11,61.78]
[1747550108751,61.78,169.2,169.18,5.9087]
[1747550108952,75.03755154,169.23,169.14,63.5]
[1747550109154,67.6872,169.23,169.15,65.7833]
[1747550109354,67.6872,169.23,169.19,5.9083]
[1747550111049,61.78,169.23,169.2,5.9081]
[1747550111455,13.25725154,169.24,169.2,5.9081]
[1747550112354,5.9069,169.24,169.2,5.9081]
[1747550114956,67.6862,169.26,169.22,5.9073]
[1747550115159,124.98,169.26,169.16,1.9971]
[1747550115549,124.98,169.26,169.16,65.1571]
[1747550115750,5.9072,169.23,169.19,5.9085]
[1747550117459,5.907,169.24,169.2,5.9079]
[1747550117653,124.98,169.26,169.16,65.1571]
[1747550118054,5.9066,169.25,169.21,5.9076]
[1747550119265,5.9066,169.25,169.22,5.9075]
[1747550119956,5.9061,169.26,169.22,5.9075]
[1747550120160,70.37035154,169.27,169.19,63.0]
[1747550120558,76.27645154,169.27,169.19,63.0]
[1747550121461,5.9062,169.26,169.22,5.9074]
[1747550122251,70.37035154,169.27,169.21,5.9078]
[1747550122651,70.37035154,169.27,169.2,62.84]
[1747550122856,70.37035154,169.27,169.22,5.9073]
[1747550123263,7.35035154,169.27,169.23,63.0]
[1747550123561,7.35035154,169.27,169.25,5.9062]
[1747550124065,7.35035154,169.3,169.25,5.9062]
[1747550124269,13.25505154,169.3,169.23,63.0]
[1747550124764,13.25505154,169.3,169.25,5.9062]
[1747550124960,5.9051,169.29,169.23,63.0]
[1747550125266,5.9051,169.29,169.24,5.9066]
[1747550125564,7.35035154,169.3,169.23,63.0]
[1747550125952,7.35035154,169.3,169.23,68.9069]
[1747550126158,5.9056,169.28,169.23,63.0]
[1747550126667,5.9052,169.29,169.24,5.9065]
[1747550127166,5.9053,169.29,169.24,5.9065]
[1747550127471,130.90917275,169.33,169.25,5.9064]
[1747550128073,5.905,169.3,169.25,5.9064]
[1747550128261,5.905,169.3,169.26,5.9061]
[1747550128457,131.32917275,169.33,169.26,5.9061]
[1747550129167,5.9046,169.31,169.26,5.9061]
[1747550129371,131.32917275,169.33,169.26,5.9061]
[1747550129673,5.9047,169.31,169.26,5.9061]
[1747550130669,5.9049,169.3,169.25,5.9063]
[1747550131674,5.9049,169.3,169.24,63.18]
[1747550132170,5.9049,169.3,169.26,5.9061]
[1747550133679,5.9044,169.31,169.26,5.9061]
[1747550134482,5.9048,169.3,169.25,5.9064]
[1747550134684,131.32917275,169.33,169.24,63.18]
[1747550134980,5.9053,169.29,169.25,5.9064]
[1747550138183,5.9053,169.29,169.26,5.906]
[1747550138384,5.9053,169.29,169.23,63.0]
[1747550138888,5.9053,169.29,169.25,5.9062]
[1747550139182,5.9053,169.29,169.23,63.0]
[1747550139584,5.9053,169.29,169.25,5.9063]
[1747550139889,5.9054,169.28,169.25,5.9063]
[1747550140187,131.32917275,169.33,169.22,67.0718]
[1747550140485,5.9061,169.27,169.22,65.1067]
[1747550140691,5.9061,169.27,169.23,5.907]
[1747550140882,5.9061,169.27,169.22,65.1067]
[1747550141081,5.9055,169.28,169.22,65.1067]
[1747550141279,5.14917275,169.3,169.22,65.1067]
[1747550141480,5.9057,169.28,169.22,65.1067]
[1747550141680,5.9057,169.28,169.24,5.9066]
[1747550142489,131.32917275,169.33,169.22,65.1067]
[1747550142786,131.32917275,169.33,169.22,1.9867]
[1747550142988,131.32917275,169.33,169.23,63.0]
[1747550143288,5.905,169.3,169.26,5.906]
[1747550143790,5.9045,169.31,169.27,5.9055]
[1747550146094,5.9045,169.31,169.28,5.9054]
[1747550146994,131.32917275,169.33,169.23,64.9945]
[1747550147494,5.9046,169.31,169.23,64.9945]
[1747550147890,5.9046,169.31,169.27,5.9056]
[1747550148286,5.9041,169.32,169.24,62.72]
[1747550149096,5.9041,169.32,169.28,5.9052]
[1747550150288,5.9044,169.31,169.28,5.9052]
[1747550150691,68.14917275,169.33,169.3,5.9046]
[1747550150892,7.35035154,169.36,169.29,62.72]
[1747550151088,7.35035154,169.36,169.3,5.7551]
[1747550151488,7.35035154,169.36,169.31,62.58]
[1747550151994,7.35035154,169.36,169.35,5.903]
[1747550154095,0.20942,169.38,169.35,5.903]
[1747550154995,0.20942,169.38,169.33,62.72]
[1747550155388,0.20942,169.38,169.36,5.9025]
[1747550156597,131.201,169.41,169.36,5.9025]
[1747550156794,68.621,169.41,169.37,5.9022]
[1747550156985,62.72,169.41,169.33,62.72]
[1747550157188,5.901,169.41,169.33,62.72]
[1747550158193,62.7,169.44,169.37,5.902]
[1747550158398,125.16,169.44,169.35,62.46]
[1747550158894,125.16,169.44,169.36,5.9026]
[1747550159099,125.16,169.44,169.35,62.46]
[1747550159401,5.9012,169.41,169.37,5.902]
[1747550159893,5.9006,169.42,169.35,62.46]
[1747550160098,5.9006,169.42,169.38,5.9017]
[1747550162503,5.9006,169.42,169.39,5.9015]
[1747550163701,68.6001,169.44,169.4,5.9009]
[1747550165207,62.7,169.44,169.36,3.7358]
[1747550166107,5.9003,169.43,169.39,5.9015]
[1747550166606,5.9005,169.42,169.39,5.9015]
[1747550167202,5.9005,169.42,169.33,62.72]
[1747550167203,28.0022466,169.4,169.29,3.75195654]
[1747550167397,5.14059393,169.33,169.29,3.75195654]
[1747550167601,127.7,169.33,169.29,3.75195654]
[1747550167903,127.7,169.34,169.29,3.75195654]
[1747550168210,5.904,169.32,169.29,3.75195654]
[1747550169108,5.9044,169.31,169.25,65.0]
[1747550169607,5.9044,169.31,169.26,5.906]
[1747550169908,127.7,169.34,169.26,5.906]
[1747550170209,127.7,169.34,169.25,70.9064]
[1747550170511,127.7,169.34,169.24,127.56]
[1747550170808,127.7,169.34,169.24,133.4666]
[1747550171001,5.9053,169.29,169.24,133.4666]
[1747550173324,5.9053,169.29,169.25,5.9064]
[1747550174316,5.9046,169.31,169.26,5.9061]
[1747550174516,5.14059393,169.38,169.24,127.56]
[1747550175021,5.9036,169.34,169.24,127.56]
[1747550175422,127.36,169.37,169.24,127.56]
[1747550175919,127.36,169.37,169.25,5.9062]
[1747550176221,127.36,169.37,169.24,127.56]
[1747550176722,127.36,169.37,169.26,5.906]
[1747550177014,127.36,169.37,169.24,127.56]
[1747550177419,5.14059393,169.34,169.24,127.56]
[1747550177619,127.28,169.33,169.24,127.56]
[1747550177820,5.9046,169.31,169.27,5.9055]
[1747550178020,5.9046,169.31,169.24,127.56]
[1747550178822,5.9046,169.31,169.27,5.9055]
[1747550180124,5.9048,169.3,169.27,5.9055]
[1747550180322,127.28,169.33,169.26,5.906]
[1747550181021,5.905,169.3,169.26,5.906]
[1747550182222,5.905,169.3,169.24,62.68]
[1747550182922,5.905,169.3,169.26,5.9058]
[1747550183224,5.9051,169.29,169.26,5.9058]
[1747550184118,5.9048,169.3,169.26,5.9058]
[1747550184319,5.9048,169.3,169.27,5.9057]
[1747550184513,62.7,169.33,169.24,62.68]
[1747550186025,62.7,169.33,169.3,5.9046]
[1747550188025,62.7,169.33,169.28,3.7483]
[1747550188229,70.0831,169.35,169.31,5.9042]
[1747550188532,128.5,169.37,169.28,68.2683]
[1747550188724,5.9029,169.36,169.32,5.904]
[1747550189128,128.5,169.37,169.32,5.904]
[1747550189424,134.4026,169.37,169.32,5.904]
[1747550190123,5.9026,169.36,169.32,5.904]
[1747550191221,5.903,169.35,169.32,5.904]
[1747550191727,5.9027,169.36,169.32,5.904]
[1747550191929,5.9027,169.36,169.33,5.9035]
[1747550192424,134.2423,169.37,169.28,68.2683]
[1747550192624,134.2423,169.37,169.28,70.296]
[1747550194625,134.2423,169.37,169.32,5.9038]
[1747550195126,5.9027,169.36,169.31,5.9043]
[1747550195327,128.34,169.37,169.31,5.9043]
[1747550195827,5.903,169.35,169.31,5.9043]
[1747550197431,5.9027,169.36,169.28,70.296]
[1747550198035,5.9027,169.36,169.31,5.904]